bitfinex/quotes_BTCUSD_20241018
["timestamp","ask_amount","ask_price","bid_price","bid_amount"]
[1729209601461,0.00808535,67454.0,67453.0,0.006936]
[1729209601887,0.01917586,67454.0,67453.0,0.006936]
[1729209602986,0.01670086,67454.0,67453.0,0.006936]
[1729209603400,0.01670086,67454.0,67453.0,0.012936]
[1729209603838,0.01670086,67454.0,67453.0,0.010936]
[1729209604275,0.16566001,67454.0,67453.0,0.010936]
[1729209604560,0.36612952,67454.0,67453.0,0.012936]
[1729209604993,0.36612952,67454.0,67453.0,0.008936]
[1729209605435,0.36612952,67454.0,67453.0,0.012936]
[1729209605436,0.38831803,67454.0,67453.0,0.012936]
[1729209605726,0.39831921,67454.0,67453.0,0.012936]
[1729209605954,0.4447001,67454.0,67453.0,0.008936]
[1729209606163,0.4447001,67454.0,67453.0,0.006936]
[1729209606374,0.40031921,67454.0,67453.0,0.010936]
[1729209606596,0.40031921,67454.0,67453.0,0.012936]
[1729209607036,0.40031921,67454.0,67453.0,0.010936]
[1729209607244,0.33542882,67454.0,67453.0,0.010936]
[1729209607465,0.40633925,67454.0,67453.0,0.011936]
[1729209607690,0.40633925,67454.0,67453.0,0.007936]
[1729209607935,0.63271893,67454.0,67453.0,0.007936]
[1729209608199,0.63271893,67454.0,67452.0,0.001652]
[1729209608200,0.116525,67453.0,67452.0,0.001652]
[1729209608417,0.44215451,67453.0,67452.0,0.001652]
[1729209608653,0.46849127,67453.0,67452.0,0.00139265]
[1729209608869,0.43242992,67453.0,67452.0,0.00139265]
[1729209609077,0.46848792,67453.0,67452.0,0.00139265]
[1729209609293,0.17838432,67436.0,67435.0,0.22231279]
[1729209609533,0.37006009,67436.0,67435.0,0.22231279]
[1729209609771,0.004525,67427.0,67426.0,0.22231279]
[1729209610012,0.01562023,67427.0,67426.0,0.22231279]
[1729209610223,0.01562023,67427.0,67423.0,0.0788]
[1729209610224,0.004525,67424.0,67423.0,0.0788]
[1729209610446,0.16005438,67427.0,67419.0,0.01]
[1729209610447,0.004525,67423.0,67419.0,0.01]
[1729209611173,0.004525,67423.0,67422.0,0.01]
[1729209611600,0.001,67427.0,67423.0,0.02]
[1729209611601,0.001,67424.0,67423.0,0.02]
[1729209611810,0.001,67427.0,67423.0,0.34965932]
[1729209612066,0.001,67427.0,67426.0,0.01]
[1729209612510,0.22683779,67434.0,67433.0,0.005]
[1729209612942,0.004525,67434.0,67433.0,0.005]
[1729209613154,0.004525,67434.0,67426.0,0.005]
[1729209613155,0.004525,67434.0,67430.0,0.005]
[1729209613396,0.004525,67434.0,67433.0,0.005]
[1729209613835,0.004525,67434.0,67433.0,0.006]
[1729209614306,0.004525,67435.0,67433.0,0.01]
[1729209614534,0.005525,67434.0,67433.0,0.01]
[1729209614992,0.005525,67434.0,67433.0,0.005]
[1729209615214,0.005525,67434.0,67433.0,0.02]
[1729209615215,0.006525,67434.0,67433.0,0.02]
[1729209615443,0.005525,67434.0,67433.0,0.01]
[1729209615887,0.006525,67434.0,67433.0,0.02230918]
[1729209616134,0.006525,67434.0,67433.0,0.02730918]
[1729209616560,0.005525,67434.0,67433.0,0.02730918]
[1729209617007,0.005525,67434.0,67433.0,0.03630918]
[1729209617008,0.006525,67434.0,67433.0,0.03630918]
[1729209617228,0.006525,67434.0,67433.0,0.02630918]
[1729209617229,0.005525,67434.0,67433.0,0.02630918]
[1729209617668,0.005525,67434.0,67433.0,0.02730918]
[1729209617890,0.006525,67434.0,67433.0,0.03630918]
[1729209618375,0.002,67434.0,67433.0,0.21020918]
[1729209619725,0.001,67434.0,67433.0,0.20120918]
[1729209620206,0.001,67434.0,67433.0,0.20020918]
[1729209620670,0.001,67434.0,67433.0,0.20120918]
[1729209620900,0.004525,67438.0,67433.0,0.20020918]
[1729209621144,0.004525,67438.0,67433.0,0.21020918]
[1729209621145,0.002,67434.0,67433.0,0.21020918]
[1729209622972,0.002,67434.0,67433.0,0.20120918]
[1729209622973,0.001,67434.0,67433.0,0.20120918]
[1729209623441,0.001,67434.0,67433.0,0.21020918]
[1729209623914,0.001,67434.0,67433.0,0.20120918]
[1729209624378,0.002,67434.0,67433.0,0.21020918]
[1729209625079,0.002,67434.0,67433.0,0.03130918]
[1729209625314,0.002,67434.0,67433.0,0.03630918]
[1729209625799,0.002,67434.0,67433.0,0.03296118]
[1729209626223,0.002,67434.0,67433.0,0.03796118]
[1729209627097,0.006525,67434.0,67433.0,0.02796118]
[1729209627362,0.01761642,67434.0,67433.0,0.02796118]
[1729209628262,0.01761662,67434.0,67433.0,0.02796118]
[1729209629148,0.01761662,67434.0,67433.0,0.020652]
[1729209630454,0.32873974,67434.0,67433.0,0.020652]
[1729209632044,0.31487512,67434.0,67433.0,0.020652]
[1729209632473,0.32874958,67434.0,67433.0,0.020652]
[1729209635136,0.32774958,67434.0,67433.0,0.010652]
[1729209635599,0.32674958,67434.0,67433.0,0.001652]
[1729209635810,0.32675626,67434.0,67433.0,0.001652]
[1729209636021,0.32775626,67434.0,67433.0,0.010652]
[1729209636489,0.32675626,67434.0,67433.0,0.001652]
[1729209636939,0.32775626,67434.0,67433.0,0.001652]
[1729209637593,0.31665829,67434.0,67433.0,0.001652]
[1729209637804,0.47290491,67434.0,67433.0,0.001652]
[1729209638241,0.32776225,67434.0,67433.0,0.001652]
[1729209639168,0.34997023,67434.0,67433.0,0.001652]
[1729209639615,0.34997022,67434.0,67433.0,0.001652]
[1729209641611,0.45997022,67434.0,67433.0,0.001652]
[1729209641850,0.45997022,67434.0,67426.0,0.001652]
[1729209641851,0.32669232,67427.0,67426.0,0.001652]
[1729209642102,0.52284454,67427.0,67426.0,0.001652]
[1729209642834,0.50063656,67427.0,67426.0,0.001652]
[1729209643319,1.127437,67427.0,67426.0,0.001652]
[1729209643547,1.10301864,67427.0,67426.0,0.003652]
[1729209644471,0.157866,67412.0,67411.0,0.22231279]
[1729209644714,0.50064696,67412.0,67411.0,0.22231279]
[1729209644957,0.148374,67397.0,67394.0,0.01]
[1729209645182,0.01109443,67397.0,67394.0,0.01]
[1729209645413,0.01108057,67397.0,67394.0,0.01]
[1729209645837,0.004525,67398.0,67394.0,0.01]
[1729209647179,0.004525,67398.0,67394.0,0.013]
[1729209647422,0.10139098,67398.0,67394.0,0.013]
[1729209648281,0.004525,67398.0,67394.0,0.013]
[1729209648756,0.005525,67398.0,67394.0,0.013]
[1729209649374,0.005525,67398.0,67394.0,0.014654]
[1729209649826,0.005525,67398.0,67395.0,0.0074922]
[1729209650992,0.005525,67398.0,67394.0,0.006654]
[1729209651219,0.004525,67398.0,67394.0,0.006654]
[1729209651447,0.152901,67396.0,67395.0,0.002]
[1729209651675,0.30186015,67396.0,67395.0,0.002]
[1729209652362,0.47071947,67396.0,67395.0,0.002]
[1729209652831,0.152903,67395.0,67394.0,0.001654]
[1729209653066,0.30186215,67395.0,67394.0,0.001654]
[1729209653517,0.15348415,67395.0,67394.0,0.001654]
[1729209653870,0.15348415,67395.0,67394.0,0.004654]
[1729209654315,0.21334366,67395.0,67394.0,0.001654]
[1729209655175,0.21334366,67395.0,67394.0,0.004654]
[1729209657792,0.36172166,67395.0,67394.0,0.004654]
[1729209658446,0.21334366,67395.0,67394.0,0.004654]
[1729209661496,0.2244022,67395.0,67394.0,0.004654]
[1729209662416,0.3727802,67395.0,67394.0,0.004654]
[1729209662839,0.2244022,67395.0,67394.0,0.004654]
[1729209665380,0.22441209,67395.0,67394.0,0.004654]
[1729209665807,0.37279009,67395.0,67394.0,0.004654]
[1729209666247,0.22441209,67395.0,67394.0,0.004654]
[1729209666455,0.16455258,67395.0,67394.0,0.004654]
[1729209666887,0.16455258,67395.0,67394.0,0.01327439]
[1729209667355,0.16455258,67395.0,67394.0,0.004654]
[1729209669044,0.15348415,67395.0,67394.0,0.01480746]
[1729209669253,0.15348415,67395.0,67394.0,0.004654]
[1729209669254,0.16456913,67395.0,67394.0,0.004654]
[1729209669463,0.01561617,67395.0,67394.0,0.01180746]
[1729209669733,0.01561617,67395.0,67394.0,0.36107278]
[1729209669734,0.01109117,67395.0,67394.0,0.36107278]
[1729209669935,0.004525,67402.0,67399.0,0.005]
[1729209670170,0.23340213,67401.0,67400.0,0.148367]
[1729209670379,0.23340213,67401.0,67400.0,0.156924]
[1729209670380,0.01561434,67401.0,67400.0,0.156924]
[1729209670834,0.01561434,67401.0,67400.0,0.161924]
[1729209671872,0.01561434,67401.0,67400.0,0.020557]
[1729209672533,0.01108934,67401.0,67400.0,0.020557]
[1729209672753,0.01561434,67401.0,67400.0,0.168924]
[1729209672969,0.01561434,67401.0,67400.0,0.026557]
[1729209672970,0.01210897,67401.0,67400.0,0.026557]
[1729209673182,0.01663397,67401.0,67400.0,0.026557]
[1729209676802,0.01663515,67401.0,67400.0,0.026557]
[1729209679001,0.38210537,67401.0,67400.0,0.021557]
[1729209679416,0.38210537,67401.0,67400.0,0.013]
[1729209679648,0.39599081,67401.0,67400.0,0.013]
[1729209679868,0.54495004,67401.0,67400.0,0.013]
[1729209680096,0.71410615,67401.0,67400.0,0.013]
[1729209680304,0.51995437,67401.0,67400.0,0.013]
[1729209680515,0.49700048,67401.0,67400.0,0.013]
[1729209680948,0.49900048,67401.0,67400.0,0.013]
[1729209681173,0.34963564,67401.0,67394.0,0.001654]
[1729209681380,0.32205911,67395.0,67394.0,0.001654]
[1729209681587,0.49601364,67395.0,67394.0,0.001654]
[1729209682409,0.6346376,67395.0,67394.0,0.001654]
[1729209683284,0.6346376,67395.0,67394.0,0.002654]
[1729209683549,0.02952038,67395.0,67394.0,0.002654]
[1729209683783,0.01563399,67395.0,67394.0,0.002654]
[1729209684004,0.01563399,67395.0,67394.0,0.01258507]
[1729209684232,0.16401199,67395.0,67394.0,0.002654]
[1729209684656,0.01563399,67395.0,67394.0,0.01258507]
[1729209684878,0.01563399,67395.0,67394.0,0.002654]
[1729209685115,0.01563399,67395.0,67394.0,0.01258507]
[1729209685537,0.01563399,67395.0,67394.0,0.01358507]
[1729209685951,0.01563399,67395.0,67394.0,0.003654]
[1729209685952,0.16401199,67395.0,67394.0,0.003654]
[1729209686164,0.16401199,67395.0,67394.0,0.002654]
[1729209686437,0.16401199,67395.0,67394.0,0.003654]
[1729209686662,0.01192482,67395.0,67394.0,0.157035]
[1729209686881,0.01192482,67395.0,67394.0,0.01858507]
[1729209688253,0.16030282,67395.0,67394.0,0.01358507]
[1729209688463,0.16030282,67395.0,67394.0,0.003654]
[1729209688671,0.16030282,67395.0,67394.0,0.008654]
[1729209688873,0.16030282,67395.0,67394.0,0.003654]
[1729209689527,0.16030282,67395.0,67394.0,0.008654]
[1729209690419,0.16030282,67395.0,67394.0,0.003654]
[1729209691327,0.32314755,67395.0,67394.0,0.003654]
[1729209691894,0.16030282,67395.0,67394.0,0.008654]
[1729209692100,0.16030282,67395.0,67394.0,0.0175971]
[1729209692524,0.01192482,67395.0,67394.0,0.0165971]
[1729209693353,0.01192482,67395.0,67394.0,0.006654]
[1729209693599,0.01110899,67395.0,67394.0,0.1649781]
[1729209693828,0.01110899,67395.0,67394.0,0.251335]
[1729209694070,0.22231279,67403.0,67399.0,0.005]
[1729209694071,0.00081583,67402.0,67399.0,0.005]
[1729209694290,0.00081583,67402.0,67401.0,0.153365]
[1729209694513,0.22231279,67403.0,67402.0,0.153363]
[1729209694514,0.00081583,67403.0,67402.0,0.153363]
[1729209694801,0.00081583,67403.0,67402.0,0.005]
[1729209694802,0.01192244,67403.0,67402.0,0.005]
[1729209695029,0.01192244,67403.0,67402.0,0.16329136]
[1729209695710,0.01192244,67403.0,67402.0,0.01492836]
[1729209695929,0.01292244,67403.0,67402.0,0.02392836]
[1729209696817,0.01392244,67403.0,67402.0,0.02992836]
[1729209697032,0.01292244,67403.0,67402.0,0.02092836]
[1729209697251,0.01292244,67403.0,67402.0,0.02892836]
[1729209697461,0.16128344,67403.0,67402.0,0.02092836]
[1729209697929,0.16128344,67403.0,67402.0,0.02892836]
[1729209698381,0.01292244,67403.0,67402.0,0.02892836]
[1729209699551,0.16128344,67403.0,67402.0,0.02892836]
[1729209699781,0.16128344,67403.0,67402.0,0.019]
[1729209700012,0.16128344,67403.0,67402.0,0.02892836]
[1729209702152,0.01292244,67403.0,67402.0,0.019]
[1729209702361,0.16128344,67403.0,67402.0,0.019]
[1729209702593,0.16128344,67403.0,67402.0,0.02891036]
[1729209702814,0.01292244,67403.0,67402.0,0.02891036]
[1729209703043,0.16128344,67403.0,67402.0,0.02891036]
[1729209704836,0.01292244,67403.0,67402.0,0.02891036]
[1729209705049,0.16128344,67403.0,67402.0,0.02891036]
[1729209706349,0.16293944,67403.0,67402.0,0.02891036]
[1729209711005,0.15183283,67403.0,67402.0,0.02891036]
[1729209711230,0.16294101,67403.0,67402.0,0.02891036]
[1729209715013,0.15183283,67403.0,67402.0,0.02891036]
[1729209715239,0.01376913,67403.0,67402.0,0.02891036]
[1729209715467,0.16294596,67403.0,67402.0,0.02891036]
[1729209716583,0.01458496,67403.0,67402.0,0.02891036]
[1729209716805,0.16294596,67403.0,67402.0,0.02891036]
[1729209717198,0.01458496,67403.0,67402.0,0.02891036]
[1729209718318,0.16294596,67403.0,67402.0,0.02891036]
[1729209719034,0.01458496,67403.0,67402.0,0.02891036]
[1729209719252,0.16294596,67403.0,67402.0,0.019]
[1729209719686,0.16294596,67403.0,67402.0,0.02875976]
[1729209720775,0.01458496,67403.0,67402.0,0.019]
[1729209720993,0.01458496,67403.0,67402.0,0.02875976]
[1729209721212,0.16294596,67403.0,67402.0,0.02875976]
[1729209721433,0.02767326,67403.0,67402.0,0.18212276]
[1729209721655,0.01459521,67403.0,67402.0,0.18212276]
[1729209722418,0.01459521,67403.0,67402.0,0.03375976]
[1729209722629,0.17686434,67403.0,67402.0,0.02375976]
[1729209722848,0.17686434,67403.0,67402.0,0.014]
[1729209723285,0.17686434,67403.0,67402.0,0.019]
[1729209723505,0.17686434,67403.0,67402.0,0.02876253]
[1729209724624,0.02850334,67403.0,67402.0,0.02876253]
[1729209725282,0.01459521,67403.0,67402.0,0.02876253]
[1729209725509,0.17686874,67403.0,67402.0,0.02876253]
[1729209726414,0.17686874,67403.0,67402.0,0.02376253]
[1729209726641,0.17686874,67403.0,67402.0,0.014]
[1729209727768,0.17686874,67403.0,67402.0,0.02876313]
[1729209729297,0.16296342,67403.0,67402.0,0.02876313]
[1729209729530,0.17687666,67403.0,67402.0,0.02876313]
[1729209730917,0.02769983,67403.0,67402.0,0.17712613]
[1729209731161,0.002656,67403.0,67402.0,0.73552347]
[1729209731394,0.002656,67403.0,67402.0,0.94566819]
[1729209731614,0.002656,67403.0,67402.0,0.84161417]
[1729209731852,0.002656,67403.0,67402.0,0.94985236]
[1729209732063,0.002656,67403.0,67402.0,0.95485236]
[1729209732231,0.002656,67403.0,67402.0,0.94185236]
[1729209732501,0.002656,67403.0,67402.0,0.94685236]
[1729209732719,0.001656,67403.0,67402.0,0.95485236]
[1729209733161,0.001656,67403.0,67402.0,1.0657145]
[1729209733627,0.001656,67403.0,67402.0,1.06569058]
[1729209734081,0.002656,67403.0,67402.0,1.07769058]
[1729209734507,0.002656,67403.0,67402.0,0.96685236]
[1729209736046,0.002656,67403.0,67402.0,1.07509055]
[1729209736252,0.22231279,67417.0,67416.0,0.67709255]
[1729209736474,0.22231279,67417.0,67416.0,0.56885436]
[1729209736685,0.22231279,67417.0,67416.0,0.57870297]
[1729209736919,0.00081583,67429.0,67425.0,0.153312]
[1729209737123,0.22231279,67434.0,67425.0,0.26655019]
[1729209737358,0.000827,67426.0,67425.0,0.27637808]
[1729209738466,0.000827,67426.0,67425.0,0.27837808]
[1729209739385,0.000827,67426.0,67425.0,0.28134391]
[1729209739616,0.000827,67426.0,67425.0,0.27837808]
[1729209740050,0.000827,67426.0,67425.0,0.41750346]
[1729209740300,0.000827,67426.0,67425.0,0.41453765]
[1729209740522,0.000827,67426.0,67425.0,0.7887968]
[1729209741193,0.000827,67426.0,67425.0,0.7867968]
[1729209741421,0.000827,67426.0,67425.0,0.7917968]
[1729209741638,0.000827,67426.0,67425.0,0.7987968]
[1729209745508,0.000827,67426.0,67425.0,0.80798097]
[1729209745990,0.000827,67426.0,67425.0,0.62602182]
[1729209747124,0.000827,67426.0,67425.0,0.45283989]
[1729209747354,0.000827,67426.0,67425.0,0.55062182]
[1729209750419,0.000827,67426.0,67425.0,0.53862182]
[1729209750677,0.001827,67426.0,67425.0,0.54862182]
[1729209750892,0.001827,67426.0,67425.0,0.56062182]
[1729209751122,0.000827,67426.0,67425.0,0.55062182]
[1729209751555,0.001827,67426.0,67425.0,0.56062182]
[1729209753086,0.000827,67426.0,67425.0,0.55062182]
[1729209753530,0.000827,67426.0,67425.0,0.56462182]
[1729209753761,0.000827,67426.0,67425.0,0.39562406]
[1729209753988,0.000827,67426.0,67425.0,0.27232406]
[1729209754488,0.000827,67426.0,67425.0,0.30032406]
[1729209754699,0.000827,67426.0,67425.0,0.28632406]
[1729209754925,0.000827,67426.0,67425.0,0.27232406]
[1729209755127,0.000827,67426.0,67425.0,0.28232406]
[1729209755347,0.000827,67426.0,67425.0,0.29532406]
[1729209755972,0.000827,67426.0,67425.0,0.29828989]
[1729209756184,0.000827,67426.0,67425.0,0.29532406]
[1729209756402,0.000827,67426.0,67425.0,0.29828989]
[1729209756619,0.000827,67426.0,67425.0,0.29532406]
[1729209759887,0.000827,67426.0,67425.0,0.40345736]
[1729209765087,0.000827,67426.0,67425.0,0.04282789]
[1729209765317,0.01194439,67426.0,67425.0,0.04282789]
[1729209765959,0.01194439,67426.0,67425.0,0.03282789]
[1729209765960,0.37619071,67426.0,67425.0,0.03282789]
[1729209766237,0.37619071,67426.0,67425.0,0.023]
[1729209766238,0.11974741,67426.0,67425.0,0.023]
[1729209766468,0.11974171,67426.0,67425.0,0.028]
[1729209766688,0.11974171,67426.0,67425.0,0.033]
[1729209766912,0.11974171,67426.0,67425.0,0.04258192]
[1729209767160,0.11974171,67426.0,67425.0,0.01958192]
[1729209767406,0.10584892,67426.0,67425.0,0.01958192]
[1729209767645,0.10584892,67426.0,67425.0,0.03158192]
[1729209767868,0.10684892,67426.0,67425.0,0.02858192]
[1729209768068,0.10684892,67426.0,67425.0,0.03458192]
[1729209768300,0.10683218,67426.0,67425.0,0.03458192]
[1729209768967,0.10683218,67426.0,67425.0,0.02858192]
[1729209769190,0.10583218,67426.0,67425.0,0.01958192]
[1729209769409,0.08805412,67426.0,67425.0,0.01958192]
[1729209769619,0.08805412,67426.0,67425.0,0.02458192]
[1729209769835,0.10583218,67426.0,67425.0,0.02458192]
[1729209770111,0.08805412,67426.0,67425.0,0.01958192]
[1729209770326,0.08805412,67426.0,67425.0,0.02958192]
[1729209770543,0.08723829,67426.0,67425.0,0.02258192]
[1729209770776,0.000827,67426.0,67425.0,0.02258192]
[1729209771005,0.000827,67426.0,67425.0,0.02758192]
[1729209771466,0.000827,67426.0,67425.0,0.17589392]
[1729209771722,0.000827,67426.0,67425.0,0.02758192]
[1729209772182,0.000827,67426.0,67425.0,0.02258192]
[1729209772390,0.000827,67426.0,67425.0,0.01958192]
[1729209772607,0.000827,67426.0,67425.0,0.02858192]
[1729209772608,0.001827,67426.0,67425.0,0.02858192]
[1729209773228,0.000827,67426.0,67425.0,0.01958192]
[1729209773452,0.001827,67426.0,67425.0,0.02858192]
[1729209774139,0.001827,67426.0,67425.0,0.04058192]
[1729209777446,0.16123973,67426.0,67425.0,0.04058192]
[1729209777901,0.2620051,67426.0,67425.0,0.031]
[1729209778794,0.26282093,67426.0,67425.0,0.026]
[1729209779014,0.26282093,67426.0,67425.0,0.031]
[1729209779239,0.11451093,67426.0,67425.0,0.031]
[1729209779449,0.37095423,67426.0,67425.0,0.026]
[1729209779674,0.26282093,67426.0,67425.0,0.031]
[1729209779897,0.2628095,67426.0,67425.0,0.031]
[1729209780373,0.1144995,67426.0,67425.0,0.031]
[1729209781084,0.08564283,67426.0,67425.0,0.031]
[1729209781291,0.26280899,67426.0,67425.0,0.031]
[1729209781502,0.11449899,67426.0,67425.0,0.026]
[1729209781753,0.35318465,67426.0,67425.0,0.026]
[1729209781983,0.11449899,67426.0,67425.0,0.031]
[1729209782425,0.26280899,67426.0,67425.0,0.031]
[1729209782847,0.27668023,67426.0,67425.0,0.031]
[1729209783377,0.37094229,67426.0,67425.0,0.026]
[1729209783801,0.38481222,67426.0,67425.0,0.031]
[1729209784018,0.11449899,67426.0,67425.0,0.031]
[1729209784235,0.09674135,67426.0,67425.0,0.031]
[1729209784473,0.11449899,67426.0,67425.0,0.031]
[1729209784689,0.09674135,67426.0,67425.0,0.031]
[1729209785114,0.11449899,67426.0,67425.0,0.031]
[1729209785321,0.26280899,67426.0,67425.0,0.031]
[1729209785754,0.11449899,67426.0,67425.0,0.031]
[1729209785897,0.11449899,67426.0,67425.0,0.026]
[1729209785898,0.09674135,67426.0,67425.0,0.026]
[1729209786123,0.09674135,67426.0,67425.0,0.031]
[1729209788177,0.09674135,67426.0,67425.0,0.026]
[1729209788414,0.01374135,67426.0,67425.0,0.031]
[1729209790450,0.01374402,67426.0,67425.0,0.031]
[1729209790747,0.01374402,67426.0,67425.0,0.026]
[1729209791714,0.03150593,67426.0,67425.0,0.026]
[1729209791956,0.01374402,67426.0,67425.0,0.026]
[1729209792153,0.03150593,67426.0,67425.0,0.026]
[1729209792423,0.04538837,67426.0,67425.0,0.026]
[1729209793552,0.01374402,67426.0,67425.0,0.026]
[1729209794015,0.03150593,67426.0,67425.0,0.026]
[1729209794260,0.01375048,67426.0,67425.0,0.026]
[1729209794494,0.03152273,67426.0,67425.0,0.026]
[1729209794716,0.03153172,67426.0,67425.0,0.026]
[1729209795655,0.03153172,67426.0,67425.0,0.03447372]
[1729209796082,0.01293811,67426.0,67425.0,0.03447372]
[1729209796087,0.01293811,67426.0,67425.0,0.179312]
[1729209796581,0.01293811,67426.0,67425.0,0.18779446]
[1729209797074,0.01293811,67426.0,67425.0,0.29592776]
[1729209797351,0.01293811,67426.0,67425.0,0.27989446]
[1729209797584,0.001827,67426.0,67425.0,0.27989446]
[1729209798690,0.001827,67426.0,67425.0,0.30289446]
[1729209798906,0.001827,67426.0,67425.0,0.51102776]
[1729209799570,0.001827,67426.0,67425.0,0.40289446]
[1729209800227,0.091827,67426.0,67425.0,0.40289446]
[1729209800458,0.090827,67426.0,67425.0,0.38189446]
[1729209800681,0.090827,67426.0,67425.0,0.49002776]
[1729209801404,0.090827,67426.0,67425.0,0.50102776]
[1729209801854,0.090827,67426.0,67425.0,0.51502776]
[1729209803612,0.090827,67426.0,67425.0,0.66898691]
[1729209803839,0.090827,67426.0,67425.0,0.75958396]
[1729209804064,0.090827,67426.0,67425.0,0.7152157]
[1729209804293,0.090827,67426.0,67425.0,0.71334317]
[1729209804517,0.090827,67426.0,67425.0,0.66898691]
[1729209804734,0.090827,67426.0,67425.0,0.68834317]
[1729209804968,0.090827,67426.0,67425.0,0.70234317]
[1729209805189,0.090827,67426.0,67425.0,0.71634317]
[1729209805853,0.090827,67426.0,67425.0,0.67198691]
[1729209806322,0.090827,67426.0,67425.0,0.71634159]
[1729209806552,0.090827,67426.0,67425.0,0.67198691]
[1729209806776,0.090827,67426.0,67425.0,0.784727]
[1729209807001,0.090827,67426.0,67425.0,0.94571212]
[1729209807442,0.090827,67426.0,67425.0,0.716338]
[1729209808083,0.090827,67426.0,67425.0,0.94590598]
[1729209808320,0.090827,67426.0,67425.0,0.67198691]
[1729209810363,0.090827,67426.0,67425.0,0.87899459]
[1729209810613,0.090827,67426.0,67425.0,0.96770432]
[1729209810951,0.090827,67426.0,67425.0,0.83282061]
[1729209811198,0.090827,67426.0,67425.0,0.84200478]
[1729209811391,0.090827,67426.0,67425.0,0.88816916]
[1729209812106,0.090827,67426.0,67425.0,0.97681195]
[1729209812550,0.090827,67426.0,67425.0,0.84200478]
[1729209812765,0.090827,67426.0,67425.0,0.68117108]
[1729209813196,0.090827,67426.0,67425.0,0.74765057]
[1729209813423,0.090827,67426.0,67425.0,0.68117108]
[1729209814104,0.090827,67426.0,67425.0,0.90929532]
[1729209814564,0.090827,67426.0,67425.0,0.74765057]
[1729209814776,0.090827,67426.0,67425.0,0.97731574]
[1729209815011,0.090827,67426.0,67425.0,0.72729693]
[1729209815223,0.090827,67426.0,67425.0,0.61733666]
[1729209815862,0.090827,67426.0,67425.0,0.68117108]
[1729209816080,0.090827,67426.0,67425.0,0.88857017]
[1729209816297,0.090827,67426.0,67425.0,0.97721296]
[1729209816736,0.090827,67426.0,67425.0,0.88857017]
[1729209817198,0.090827,67426.0,67425.0,0.90887838]
[1729209817413,0.090827,67426.0,67425.0,0.8885672]
[1729209818063,0.090827,67426.0,67425.0,0.8905672]
[1729209818499,0.090827,67426.0,67425.0,0.97911311]
[1729209818969,0.090827,67426.0,67425.0,1.08724641]
[1729209819190,0.090827,67426.0,67425.0,1.0795005]
[1729209819618,0.00173226,67426.0,67425.0,1.07845458]
[1729209820569,0.00173226,67426.0,67425.0,1.07645458]
[1729209820803,0.00173226,67426.0,67425.0,1.07845458]
[1729209821004,0.00173226,67426.0,67425.0,1.06445458]
[1729209821246,0.00173226,67426.0,67425.0,1.07845458]
[1729209821529,0.00173226,67426.0,67425.0,1.06445458]
[1729209821767,0.00256026,67426.0,67425.0,1.06445458]
[1729209822224,0.00256026,67426.0,67425.0,1.07845458]
[1729209823566,0.00256026,67426.0,67425.0,1.18894704]
[1729209826529,0.00256026,67426.0,67425.0,1.10813458]
[1729209827495,0.00256026,67426.0,67425.0,1.10613458]
[1729209827918,0.22231279,67451.0,67450.0,0.158257]
[1729209828365,0.22231279,67451.0,67450.0,0.16656134]
[1729209828579,0.0741,67453.0,67451.0,0.153255]
[1729209829000,0.0741,67453.0,67451.0,0.16155704]
[1729209829663,0.07491583,67453.0,67451.0,0.16155704]
[1729209829881,0.07491583,67453.0,67451.0,0.17155704]
[1729209830098,0.07491583,67453.0,67451.0,0.18555704]
[1729209832298,0.0741,67453.0,67451.0,0.19055704]
[1729209832530,0.0741,67453.0,67451.0,0.21152194]
[1729209832738,0.0741,67453.0,67451.0,0.20855704]
[1729209832739,0.07491583,67453.0,67451.0,0.20855704]
[1729209832954,0.07491583,67453.0,67451.0,0.20455704]
[1729209833174,0.0741,67453.0,67451.0,0.20455704]
[1729209833406,0.0741,67453.0,67451.0,0.20855704]
[1729209833606,0.0741,67453.0,67451.0,0.19455704]
[1729209833837,0.0741,67453.0,67451.0,0.20755704]
[1729209834236,0.0741,67453.0,67451.0,0.20855704]
[1729209835388,0.0741,67453.0,67451.0,0.46564949]
[1729209835579,0.0741,67453.0,67451.0,0.45164949]
[1729209835833,0.0741,67453.0,67451.0,0.46464949]
[1729209836048,0.0741,67453.0,67451.0,0.37051619]
[1729209836318,0.0741,67453.0,67451.0,0.34351619]
[1729209836543,0.0741,67453.0,67451.0,0.37051619]
[1729209837399,0.0741,67453.0,67451.0,0.57864949]
[1729209837618,0.0741,67453.0,67451.0,0.47051619]
[1729209839130,0.0741,67453.0,67451.0,0.31655704]
[1729209839797,0.078526,67452.0,67451.0,0.31655704]
[1729209840693,0.078526,67452.0,67451.0,0.32155704]
[1729209844457,0.000826,67452.0,67451.0,0.31655704]
[1729209845538,0.000826,67452.0,67451.0,0.32155704]
[1729209846210,0.000826,67452.0,67451.0,0.31655704]
[1729209847128,0.000826,67452.0,67451.0,0.32155704]
[1729209849533,0.33127209,67452.0,67451.0,0.04030204]
[1729209849764,0.46611679,67452.0,67451.0,0.03530204]
[1729209849987,0.46611679,67452.0,67451.0,0.027]
[1729209851151,0.46611679,67452.0,67451.0,0.014]
[1729209851367,0.0814,67451.0,67448.0,0.005]
[1729209851586,0.1897333,67449.0,67448.0,0.005]
[1729209851816,0.23333779,67449.0,67448.0,0.005]
[1729209852032,0.25140611,67449.0,67448.0,0.005]
[1729209852249,0.28028314,67449.0,67448.0,0.005]
[1729209852474,0.29416569,67449.0,67448.0,0.005]
[1729209853097,0.44242569,67449.0,67448.0,0.01]
[1729209853308,0.44242569,67449.0,67448.0,0.012]
[1729209853536,0.29416569,67449.0,67448.0,0.012]
[1729209854439,0.29416569,67449.0,67448.0,0.01]
[1729209855168,0.29416569,67449.0,67448.0,0.005]
[1729209855383,0.69416569,67449.0,67448.0,0.006]
[1729209855595,0.69416569,67449.0,67448.0,0.01]
[1729209856473,0.68028271,67449.0,67448.0,0.01]
[1729209856686,0.51129243,67449.0,67448.0,0.01]
[1729209859342,1.12882437,67449.0,67448.0,0.005]
[1729209859616,0.91851158,67449.0,67448.0,0.005]
[1729209859843,0.94512594,67449.0,67448.0,0.005]
[1729209860054,0.99689767,67449.0,67448.0,0.005]
[1729209860278,1.16269568,67449.0,67448.0,0.005]